Cogmind - Beta 9.3 @@@ ROGUE MODE // 2019.12.29 @ 18:48:01 // Winter2019/RPGLIKE Player: BadAss McGhee Result: Destroyed by G-50 Soldier with Heavy Laser Performance ------------- Evolutions (3) 1500 Regions Visited (6) 1200 Robots Destroyed (47) 235 Value Destroyed (1487) 1487 Prototype IDs (3) 60 Alien Tech Used (0) 0 Bonus (943) 943 TOTAL SCORE: 5425 Bonus ------- High Alert Combat Kills 577 Follower Combat Kills 179 Entered Garrisons 200 Friendly Fire -13 Cogmind --------- Core Integrity 0/800 Matter 230/300 Energy 364/390 System Corruption 2% Temperature Cool (10) Movement Walking (120) Location -7/Factory Parts ------- > --- POWER (1) -------- Light Deuterium Engine > --- PROPULSION (3) --- Aluminum Leg Aluminum Leg Improved Carbon-fiber Leg > --- UTILITY (6) ------ Enhanced Optical Array Advanced Terrain Scanner Advanced Targeting Computer Transmission Jammer Improved Medium Armor Plating Hacking Suite > --- WEAPON (2) ------- Improved EM Shotgun Heavy Particle Cannon > --- INVENTORY (2) ---- Relay Coupler [Swarmer] (62) Remote Datajack Peak State ------------ > --- POWER ------------ Micro Nuclear Core > --- PROPULSION ------- Aluminum Leg Aluminum Leg Improved Carbon-fiber Leg > --- UTILITY ---------- Improved Cooling System Advanced Terrain Scanner Advanced Targeting Computer Transmission Jammer Improved Medium Armor Plating Hacking Suite > --- WEAPON ----------- Heavy Particle Cannon Remote Datajack > --- INVENTORY -------- Relay Coupler [Swarmer] Improved EM Shotgun [Rating: 37] Favorites ----------- Power Improved Ion Engine Engine Improved Ion Engine Power Core Micro Nuclear Core Propulsion Aluminum Leg Treads Light Treads Leg Aluminum Leg Hover Unit Hover Unit Utility Targeting Computer Device Heat Sink Processor Targeting Computer Hackware Hacking Suite Protection Improved Medium Armor Plating Weapon Improved EM Shotgun Energy Gun Improved EM Shotgun Energy Cannon Heavy Particle Cannon Special Weapon Remote Datajack Build | -11 -10 -9 -9 -9 -9 -7 ------- Run | Scr Mat Mat Sto Gar Rec Fac Slots Evolved 8 | 3 . 1 . 1 . 3 Power . | . . . . . . . Propulsion 2 | 1 . . . 1 . . Utility 5 | 1 . 1 . . . 3 Weapon 1 | 1 . . . . . . Parts Attached 40 | 5 4 3 4 6 1 17 Power 6 | 1 . . 1 1 . 3 Engine 4 | 1 . . 1 1 . 1 Core 2 | . . . . . . 2 Reactor . | . . . . . . . Propulsion 9 | 2 2 . . 4 . 1 Treads 2 | 2 . . . . . . Leg 5 | . . . . 4 . 1 Wheel . | . . . . . . . Hover 2 | . 2 . . . . . Flight . | . . . . . . . Utility 13 | . 2 1 . . 1 9 Device 5 | . 1 . . . . 4 Storage . | . . . . . . . Processor 6 | . 1 1 . . 1 3 Hackware 1 | . . . . . . 1 Protection 1 | . . . . . . 1 Artifact . | . . . . . . . Weapon 12 | 2 . 2 3 1 . 4 Energy Gun 7 | 2 . 1 2 1 . 1 Energy Cannon 4 | . . 1 1 . . 2 Ballistic Gun . | . . . . . . . Ballistic Cannon . | . . . . . . . Launcher . | . . . . . . . Special Weapon 1 | . . . . . . 1 Impact Weapon . | . . . . . . . Slashing Weapon . | . . . . . . . Piercing Weapon . | . . . . . . . Special Melee Weapon . | . . . . . . . Unidentified Prototypes 1 | . . . 1 . . . Parts Lost 1 | . . . . . . 1 Power . | . . . . . . . Propulsion . | . . . . . . . Utility . | . . . . . . . Weapon 1 | . . . . . . 1 Highest Loss Streak 1 | . . . . . . 1 Average Slot Usage (%) 97 | . 94 97 98 100 100 96 Engine 8 | . 14 12 12 11 11 1 Core 2 | . . . . . . 7 Treads 5 | . 27 . . . . . Leg 18 | . . . . 17 33 27 Hover 4 | . . 25 25 11 . . Device 12 | . 9 12 12 11 11 15 Processor 18 | . 12 22 25 23 22 16 Hackware 1 | . . . . . . 5 Protection 1 | . . . . . . 4 Energy Gun 19 | . 28 25 12 23 22 12 Energy Cannon 2 | . . . 10 . . 4 Naked Turns . | . . . . . . . Heaviest Build 26 | 9 10 10 15 15 14 26 Greatest Support 53 | 40 40 27 27 45 45 53 Greatest Overweight (x) 1 | . 1 . . . . . Average Overweight (x) . | . . . . . . . Largest Inventory Capacity 2 | 2 2 2 2 2 2 2 Average Capacity 2 | 2 2 2 2 2 2 2 Most Carried 2 | 2 2 2 2 2 2 2 Average Carried 1 | 1 2 1 2 1 1 1 Final Capacity 2 | 2 2 2 2 2 2 2 Final Carried 2 | 2 2 2 2 2 2 2 Class Distribution -------------------- 48% | Mutant 45% | Scavenger-Mutant 5% | Commander-Mutant Dominant Class ---------------- Mutant | -10/Materials Mutant | -9/Materials Mutant | -9/Storage Scavenger-Mutant | -9/Garrison Scavenger-Mutant | -9/Recycling Scavenger-Mutant | -7/Factory Resources | -11 -10 -9 -9 -9 -9 -7 ----------- Run | Scr Mat Mat Sto Gar Rec Fac Matter Collected 525 | 250 20 50 . 90 20 95 Remotely . | . . . . . . . Salvage Created 1483 | . 117 117 . 335 62 852 Parts 97 | . 4 6 8 31 12 36 Haulers Intercepted . | . . . . . . . Recyclers Shooed 1 | . . . . . . 1 Parts Field Recycled . | . . . . . . . Retrieved Matter . | . . . . . . . Parts Self-Destructed . | . . . . . . . Prevented . | . . . . . . . Kills | -11 -10 -9 -9 -9 -9 -7 ------- Run | Scr Mat Mat Sto Gar Rec Fac Combat Hostiles Destroyed 44 | . 5 3 4 13 5 14 Guns 32 | . 5 2 3 12 5 5 Cannons 4 | . . 1 1 . . 2 AOE 5 | . . . . . . 5 Classes Destroyed 11 | . 3 . 1 . 1 6 Worker 1 | . . . . . . 1 Operator 1 | . . . . . . 1 Drone 5 | . . . . . 5 . Watcher 1 | . 1 . . . . . Swarmer 8 | . 3 . 3 1 . 1 Grunt 22 | . 2 3 . 10 . 7 Brawler 1 | . . . . . . 1 Duelist 1 | . . . . . . 1 Sentry 4 | . . . 1 2 . 1 Hunter 1 | . . . . . . 1 Programmer 2 | . . . . . . 2 Best Kill Streak 4 | . 3 2 2 3 2 4 Combat Bots Only 4 | . 3 2 2 3 2 4 Max Kills in Single Turn 2 | . 1 1 1 2 1 2 Gunslinging 1 | . . . . 1 . . Exploded 1 | . . . . . . 1 Melee . | . . . . . . . Uniques/NPCs Destroyed . | . . . . . . . Combat | -11 -10 -9 -9 -9 -9 -7 -------- Run | Scr Mat Mat Sto Gar Rec Fac Damage Taken 2238 | . 169 213 253 428 . 1175 Core 1814 | . 129 172 210 349 . 954 Absorbed by Shields . | . . . . . . . Redirected to Core 1435 | . 129 137 155 259 . 755 Core Remaining (%) 100 | 100 100 . . . 100 . Volleys Fired 127 | . 21 12 12 23 9 50 Largest 2 | . 2 2 1 2 2 2 Hottest 120 | . 90 108 68 90 90 120 Shots Fired 193 | . 23 24 12 46 18 70 Gun 163 | . 23 22 8 46 18 46 Cannon 30 | . . 2 4 . . 24 Launcher . | . . . . . . . Special . | . . . . . . . Kinetic . | . . . . . . . Thermal 61 | . 21 12 4 . . 24 Explosive . | . . . . . . . Electromagnetic 132 | . 2 12 8 46 18 46 Robot Hit Streak 48 | . 16 7 7 24 3 48 Robot Miss Streak 7 | . 2 2 3 2 7 2 Penetration Max . | . . . . . . . Secondary Targets 5 | . . 1 . 4 . . Max Gunslinging Chain 1 | . . 1 . 1 . . Shots Hit Robots 155 | . 19 17 9 41 7 62 Core Hits 96 | . 9 7 5 27 5 43 Critical Hits 1 | . . . . . . 1 Critical Kills . | . . . . . . . Critical Parts Destroyed 1 | . . . . . . 1 Melee Attacks . | . . . . . . . Impact . | . . . . . . . Slashing . | . . . . . . . Piercing . | . . . . . . . Sneak Attacks . | . . . . . . . Combat Hostiles . | . . . . . . . Follow-up Attacks . | . . . . . . . Damage Inflicted 3362 | . 253 260 116 865 116 1752 Guns 2192 | . 253 219 75 736 114 795 Cannons 569 | . . 41 41 . . 487 Explosions 599 | . . . . 129 . 470 Melee . | . . . . . . . Ramming 2 | . . . . . 2 . Kinetic . | . . . . . . . Thermal 1466 | . 211 128 41 129 . 957 Explosive . | . . . . . . . Electromagnetic 1894 | . 42 132 75 736 114 795 Impact . | . . . . . . . Slashing . | . . . . . . . Piercing . | . . . . . . . Highest Corruption 2 | . . . . . . 2 Average Corruption 1 | . . . . . . 1 Corruption Purged . | . . . . . . . Effects 3 | . . . . . . 3 Message Errors 3 | . . . . . . 3 Overload Shots . | . . . . . . . Overflow Damage 17 | . . . . . . 17 Projectiles 13 | . . . . . . 13 Explosions 4 | . . . . . . 4 Melee . | . . . . . . . Knockbacks . | . . . . . . . Impact . | . . . . . . . Kinetic . | . . . . . . . Secondary . | . . . . . . . Self-Inflicted Damage 278 | . . . . . . 278 Shots 6 | . . . . . . 6 Rammed . | . . . . . . . Targets Rammed 1 | . . . . . 1 . Kicked 1 | . . . . . 1 . Crushed . | . . . . . . . Highest Temperature 110 | . 30 110 57 . . 14 Average Temperature 32 | . 9 46 25 . . 6 Received Heat Transfer 561 | . 66 78 36 183 . 198 Siege Activations . | . . . . . . . Robots Corrupted 3 | . . . . 1 . 2 Combat Hostiles 3 | . . . . 1 . 2 Parts Fried 9 | . 1 1 . 3 . 4 Impact Corruptions . | . . . . . . . Robots Melted . | . . . . . . . Combat Hostiles . | . . . . . . . Parts Melted 6 | . 3 . . . . 3 Heat Transferred 2563 | . 629 333 74 200 . 1327 Parts Sabotaged . | . . . . . . . Parts Stolen . | . . . . . . . Parts Stripped . | . . . . . . . Power Chain Reactions 7 | . . . . 1 . 6 Missiles Intercepted . | . . . . . . . Alert | -11 -10 -9 -9 -9 -9 -7 ------- Run | Scr Mat Mat Sto Gar Rec Fac Peak Influence 1336 | . 162 100 263 677 437 1336 Average Influence 605 | . 44 58 98 509 368 1206 Maximum Alert Level 4 | . . . 1 2 2 4 Low Security (%) 30 | 100 100 100 87 7 . . Level 1 12 | . . . 12 17 53 . Level 2 20 | . . . . 74 46 . Level 3 3 | . . . . . . 10 Level 4 32 | . . . . . . 89 Level 5 . | . . . . . . . High Security . | . . . . . . . Max Security . | . . . . . . . Squads Dispatched 10 | . . 2 2 . . 6 Investigation . | . . . . . . . Extermination 2 | . . . . . . 2 Reinforcement 5 | . . 2 . . . 3 Assault 1 | . . . . . . 1 Garrison 2 | . . . 2 . . . Intercept . | . . . . . . . Construction Impeded . | . . . . . . . Haulers Reinforced . | . . . . . . . Stealth | -11 -10 -9 -9 -9 -9 -7 --------- Run | Scr Mat Mat Sto Gar Rec Fac Distress Signals 5 | . . 5 . . . . Communications Jammed . | . . . . . . . Distress Signals . | . . . . . . . Times Spotted 103 | . 9 10 11 23 15 35 Peak Tracking Total 8 | . 3 7 5 8 3 5 Tactical Retreats 5 | . . . 1 . . 4 Traps | -11 -10 -9 -9 -9 -9 -7 ------- Run | Scr Mat Mat Sto Gar Rec Fac Traps Triggered 3 | . 1 . . . . 2 Indirectly . | . . . . . . . Trap Hack Attempts . | . . . . . . . Triggered . | . . . . . . . Disarmed . | . . . . . . . Reprogrammed . | . . . . . . . Reused . | . . . . . . . Traps Extracted . | . . . . . . . Installed . | . . . . . . . Triggered . | . . . . . . . Machines | -11 -10 -9 -9 -9 -9 -7 ---------- Run | Scr Mat Mat Sto Gar Rec Fac Machines Disabled 2 | . . 1 . . . 1 Max in Single Turn 1 | . . 1 . . . 1 Machines Sabotaged . | . . . . . . . Garrisons Compromised . | . . . . . . . Overloaded Fab Kills . | . . . . . . . Fab Network Shutdowns . | . . . . . . . Hacking | -11 -10 -9 -9 -9 -9 -7 --------- Run | Scr Mat Mat Sto Gar Rec Fac Machines Accessed 10 | . 2 2 3 . 1 2 Terminals 7 | . 2 1 2 . 1 1 Fabricators 1 | . . . . . . 1 Repair Stations . | . . . . . . . Recycling Units . | . . . . . . . Scanalyzers 1 | . . 1 . . . . Garrison Access 1 | . . . 1 . . . Total Hacks 12 | . 2 4 3 . 1 2 Successful 10 | . 2 3 3 . 1 1 Failed 2 | . . 1 . . . 1 Catastrophic . | . . . . . . . Database Lockouts . | . . . . . . . Manual . | . . . . . . . Terminals 7 | . 2 1 2 . 1 1 Fabricators 1 | . . . . . . 1 Repair Stations . | . . . . . . . Recycling Units . | . . . . . . . Scanalyzers 3 | . . 3 . . . . Garrison Access 1 | . . . 1 . . . Terminal Hacks 7 | . 2 1 2 . 1 1 Part Schematic 1 | . . . . . . 1 Prototype ID Bank 1 | . 1 . . . . . Open Door 1 | . . . 1 . . . Unreport Threat 2 | . 1 . 1 . . . Investigation Status 1 | . . . . . 1 . Hauler Manifests 1 | . . 1 . . . . Fabricator Hacks . | . . . . . . . Repair Station Hacks . | . . . . . . . Recycling Unit Hacks . | . . . . . . . Scanalyzer 2 | . . 2 . . . . Insert Component 1 | . . 1 . . . . Analyze 1 | . . 1 . . . . Garrison Access Hacks 1 | . . . 1 . . . Unlock Access 1 | . . . 1 . . . Unauthorized Hacks . | . . . . . . . Terminals . | . . . . . . . Fabricators . | . . . . . . . Repair Stations . | . . . . . . . Recycling Units . | . . . . . . . Scanalyzers . | . . . . . . . Garrison Access . | . . . . . . . Data Cores Recovered . | . . . . . . . Used . | . . . . . . . Hacking Detections 4 | . 1 1 1 . . 1 Full Trace Events . | . . . . . . . Feedback Events . | . . . . . . . Feedback Blocked . | . . . . . . . Robot Schematics Acquired . | . . . . . . . Robots Built . | . . . . . . . Matter . | . . . . . . . Time . | . . . . . . . Total Robot Build Rating . | . . . . . . . Part Schematics Acquired 2 | . . 1 . . . 1 Parts Built . | . . . . . . . Matter . | . . . . . . . Time . | . . . . . . . Total Part Build Rating . | . . . . . . . Parts Repaired . | . . . . . . . Time . | . . . . . . . Parts Recycled . | . . . . . . . Recycled Matter . | . . . . . . . Retrieved Matter . | . . . . . . . Retrieved Components . | . . . . . . . Parts Scanalyzed 1 | . . 1 . . . . Part Schematics Acquired 1 | . . 1 . . . . Parts Damaged . | . . . . . . . Bothacking | -11 -10 -9 -9 -9 -9 -7 ------------ Run | Scr Mat Mat Sto Gar Rec Fac Used RIF Installer . | . . . . . . . Robots Hacked . | . . . . . . . Non-combat . | . . . . . . . Combat . | . . . . . . . Robot Hacks Applied . | . . . . . . . Relay Couplers Released 2 | . . . . . . 2 Programmers 2 | . . . . . . 2 Robots Rewired . | . . . . . . . Allies Hacked . | . . . . . . . Hacks Repelled . | . . . . . . . Allies | -11 -10 -9 -9 -9 -9 -7 -------- Run | Scr Mat Mat Sto Gar Rec Fac Total Allies 10 | . . . 10 . . . Largest Group 10 | . . . 10 8 . . Highest-Rated Group 88 | . . . 88 72 . . Highest-Rated Ally 16 | . . . 16 16 . . Total Orders . | . . . . . . . Ally Attacks 80 | . . . 24 56 . . Total Damage 765 | . . . 246 519 . . Kills 18 | . . . 9 9 . . Allies Corrupted . | . . . . . . . Allies Melted . | . . . . . . . Intel | -11 -10 -9 -9 -9 -9 -7 ------- Run | Scr Mat Mat Sto Gar Rec Fac Robot Analysis Total . | . . . . . . . Derelict Logs Recovered . | . . . . . . . Drone Launches . | . . . . . . . Drone Recoveries . | . . . . . . . Exploration | -11 -10 -9 -9 -9 -9 -7 ------------- Run | Scr Mat Mat Sto Gar Rec Fac Turns Passed 2926 | 74 520 156 115 523 471 1067 Spaces Moved 2038 | 43 295 174 113 361 349 703 Core 3 | 3 . . . . . . Treads 316 | 40 276 . . . . . Legs 1239 | . . . . 187 349 703 Wheels . | . . . . . . . Hover 480 | . 19 174 113 174 . . Flight . | . . . . . . . Fastest Speed 50 | 50 56 56 56 56 120 120 Average Speed 111 | 152 153 56 56 89 120 120 Slowest Speed 160 | 160 160 56 56 120 120 120 Overloaded Moves . | . . . . . . . Propulsion Burnouts . | . . . . . . . Robots Hopped . | . . . . . . . Cave-ins Triggered . | . . . . . . . Exploration Rate (%) 38 | 4 50 26 20 56 85 29 Regions Visited 6 Branch Regions 2 Pre-discovered Areas . | . . . . . . . Known Exits Taken 1 | . . . 1 . . . Unknown Exits Taken 4 | 1 1 1 . . 1 . Scrap Searched . | . . . . . . . Spaces Dug . | . . . . . . . Terrain Destroyed 11 | . . . . 1 . 10 Melee . | . . . . . . . Projectile . | . . . . . . . AOE 11 | . . . . 1 . 10 Actions | -11 -10 -9 -9 -9 -9 -7 --------- Run | Scr Mat Mat Sto Gar Rec Fac Total 2499 | 49 337 207 152 516 383 855 Wait 212 | . 9 8 9 101 21 64 Move 2033 | 42 294 173 113 360 348 703 Hop . | . . . . . . . Pick Up 7 | 2 . 1 . 1 1 2 Fast Attach 26 | 5 4 1 2 3 1 10 Attach 1 | . . . . . . 1 Detach . | . . . . . . . Swap 13 | . . 2 2 3 . 6 Drop 23 | . 2 1 3 5 2 10 Fire 127 | . 21 12 12 23 9 50 Melee . | . . . . . . . Ram . | . . . . . . . Kick 1 | . . . . . 1 . Crush . | . . . . . . . Escape Stasis 2 | . . . . . . 2 Rewire . | . . . . . . . Trap . | . . . . . . . Miscellaneous 54 | . 7 9 11 20 . 7 Route ------- -11/Scrapyard -10/Materials -9/Materials (discovered 2 exits: [*Mat] / *Sto) -9/Storage -9/Garrison -9/Recycling -7/Factory History --------- Turn | Location | Event 1 | -11/Scrapyard | Upgraded with Propulsion slot (x1) 1 | -11/Scrapyard | Upgraded with Utility slot (x1) 1 | -11/Scrapyard | Upgraded with Weapon slot (x1) 14 | -11/Scrapyard | Discovered new exit (range 17) 75 | -11/Scrapyard | Entered Materials 316 | -10/Materials | Build established: Mutant 593 | -10/Materials | Discovered new exit (range 4) 595 | -10/Materials | Entered another Materials area 597 | -9/Materials | Reached level 2 598 | -9/Materials | Upgraded with Utility slot (x1) 640 | -9/Materials | Discovered new exit (range 17) 653 | -9/Materials | Met 8R-AWN 717 | -9/Materials | Discovered new exit (range 15) 751 | -9/Materials | Entered Storage 753 | -9/Storage | Reached level 3 825 | -9/Storage | Assisted by bots powering up and referring to "LRC-V3" 846 | -9/Storage | Reached level 4 866 | -9/Storage | Identified exit to Garrison 866 | -9/Storage | Entered Garrison 866 | -9/Garrison | Accompanied by 8 allies 902 | -9/Garrison | Triggered checkpoint 903 | -9/Garrison | Reached level 5 1004 | -9/Garrison | Triggered checkpoint 1017 | -9/Garrison | Reached level 6 1066 | -9/Garrison | Triggered checkpoint 1102 | -9/Garrison | Upgraded with Propulsion slot (x1) 1170 | -9/Garrison | Discovered new exit (range 12) 1224 | -9/Garrison | Triggered checkpoint 1272 | -9/Garrison | Triggered checkpoint 1389 | -9/Garrison | Entered Recycling 1391 | -9/Recycling | Reached level 7 1399 | -9/Recycling | Build established: Scavenger-Mutant 1428 | -9/Recycling | Spotter reported a threat 1430 | -9/Recycling | Spotter reported a threat 1433 | -9/Recycling | Spotter reported a threat 1473 | -9/Recycling | Spotter reported a threat 1483 | -9/Recycling | Spotter reported a threat 1503 | -9/Recycling | Spotter reported a threat 1515 | -9/Recycling | Spotter reported a threat 1541 | -9/Recycling | Spotter reported a threat 1570 | -9/Recycling | Spotter reported a threat 1598 | -9/Recycling | Spotter reported a threat 1623 | -9/Recycling | Spotter reported a threat 1627 | -9/Recycling | Spotter reported a threat 1788 | -9/Recycling | Spotter reported a threat 1790 | -9/Recycling | Spotter reported a threat 1798 | -9/Recycling | Spotter reported a threat 1824 | -9/Recycling | Discovered new exit (range 5) 1860 | -9/Recycling | Entered Factory 1862 | -7/Factory | Reached level 8 2053 | -7/Factory | Core integrity fell below 50% 2058 | -7/Factory | Reached level 9 2150 | -7/Factory | Upgraded with Utility slot (x3) 2332 | -7/Factory | Core integrity fell below 20% 2660 | -7/Factory | First assault squad dispatched 2818 | -7/Factory | Build established: Mutant 2927 | -7/Factory | Destroyed by G-50 Soldier with Heavy Laser Last Messages --------------- 02575_ TX316QDWEOFLWGGG JPU:S IST9YWM:QI#C3, 02610_ ALERT: Rogue bot located, Programmers report to Factory Zone 7I. 02660_ ALERT: Significant disruption in Zone 4J, assault force dispatched. 02692_ Chain reaction triggered in Lgt. Angular Momentum Engine. 02692_ P-60 Hacker destroyed. 02693_ K-01 Serf collects debris. 02842_ Connecting with Terminal... 02860_ ALERT: Rogue bot located, Programmers report to Factory Zone 3Q. 02887_ 8:>7%V:FVK%GFC6ZKYYUN9B2FOOT UA4ZA/ 02892_ Dropped Imp. Cooling System. 02893_ Acquired Enh. Optical Array. 02895_ R-06 Scavenger collects Imp. Cooling System. 02901_ R-06 Scavenger inserts Wheel into recycling unit. 02907_ R-06 Scavenger inserts Imp. Cooling System into recycling unit. 02911_ T-07 Excavator is excavating. 02923_ Dropped Mic. Nuclear Core. 02923_ Acquired Lgt. Deuterium Engine. 02925_ C-30 ARC bursts open, deploying its payload. 02925_ G-50 Soldier unfolds itself. 02925_ G-47 Trooper unfolds itself. Map ----- +----------------------------------------------------+ | ?#????# """" """" #??????#???????????? | | ???#??# """" """" #?????#????????????? | | ??#???# """" """" #???????#??????????? | | ???#??# #??????????????????? | | ??????# #??????????????????? | | ????#########+######??#???????????????? | | ##### #??#?????????????????? | | # #??#?????????????????? | | "" # #????????????????????? | | # #??????#?????????????? | | "" # #????????????????????? | | # ###### ##??????????#????????? | | "" # ######+#######?????#????????? | | # # #??????????????? | | "" # # #??????????????? | | # # #??????????????? | | "" + # #??#???????????? | | # # #????????#?????? | | # # #????#?????????? | | ##### # #??????????????? | | # #????????#?????? | | # #??????????????? | | # #??????????????? | | + #??????????????? | | # ########???????? | | ##### ##############*@ #??#?#??# | | ????# # #??# #???????? | | ????# # !!] """ #?## " #???????? | | ????# # !] """ ##?# ] T #??????#? | | ??"?# # ] """ #??# " #????? ?? | | ??? + + #??# ggg #???????? | | ?"" # # """Y""" #??###/####???????? | | """ # # """"""" ##### g ####??????? | | """ # # + m +??????? | | ??# ############### #??????? | | #???# #?????????????# #??????? | | ????# #?????????????# #??????? | | ????# #?#???????????# ##?????? | | ???## #?????????????# #??????? | | ????# #?????????????# ##?????? | | ????# #??#??????????# #?#????? | | ????# ??? ?????????? #??????? | | ???## ????? ???????? #??????? | | ???? ?????????????? ??????? | | ????? ?????????????? ##?????? | | ??????? ?????????? ??? #????#?? | | ?????????????????????? #??????? | | ??????????????????????? #??????? | | ??????????????????????? #??????? | | ??????????????????????? #??????? | +----------------------------------------------------+ Best States ------------- Heat Dissipation 88 Energy Generation 25 Energy Capacity 515 Matter Stores 300 Matter Capacity 300 Sight Range 23 Robot Scan Range 8 Terrain Scan Range 20 Terrain Scan Density 85 Jamming Range 8 Armor Coverage 225 Resistance: KI 10 Evasion (%) 53 Targeting Accuracy 8 Recoil Reduction 2 Offensive Hacking 10 Item Schematics ----------------- Particle Cannon | -9/Materials | Scanalyzed Drone Bay | -7/Factory | Hacked Robot Schematics ------------------ None Fabricated ------------ Nothing Alien Tech Used ----------------- None Achievements -------------- \\IAMDERELICT Challenges ------------ None RPGLIKE | -11 -10 -9 -9 -9 -9 -7 --------- Run | Scr Mat Mat Sto Gar Rec Fac Levels Raised 8 | . . 1 2 2 1 2 XP Earned 16170 | 3000 635 1925 2749 3088 1175 3598 XP Spent 14960 | 3000 . 1450 . 6035 . 4475 Upgrades 43 | 10 . 5 . 23 . 5 Propulsion Slot 2 | 1 . . . 1 . . Utility Slot 5 | 1 . 1 . . . 3 Weapon Slot 1 | 1 . . . . . . Core Integrity 4 | 1 . . . 3 . . Heat Dissipation 6 | . . . . 5 . 1 Energy Generation 2 | . . . . 2 . . Energy Storage 5 | 2 . . . 3 . . Mass Support 3 | . . 3 . . . . Inventory Capacity 2 | 2 . . . . . . Sight Range 1 | 1 . . . . . . Sensor Range 4 | . . 1 . 2 . 1 Ranged Accuracy 3 | . . . . 3 . . Melee Accuracy 1 | 1 . . . . . . KI Resistance % 2 | . . . . 2 . . EX Damage % 2 | . . . . 2 . . Protomatter Created 696 | . 70 49 97 307 9 164 Integrity Restored 1070 | . 129 172 210 406 . 153 Core 1013 | . 129 172 210 349 . 153 Parts 57 | . . . . 57 . . Protomatter Decayed 621 | . 26 57 71 436 9 22 Game ------ Seed DamperStormRedirector Manual? 0 Play Time 00:48:20 Cumulative 61.7 hours Start 2019.12.29 @ 17:52:29 End 2019.12.29 @ 18:48:01 Sessions 1 Manual Loads 0 Difficulty Rogue Special Mode Winter2019/RPGLIKE Game No. 71 Rogue 71 Adventurer 0 Explorer 0 Win Type - Total 0 Types 0/0/0/0/0/0/0 Lore% 11 Gallery% 29 Achievement% 19 Wizard Run 0 Options --------- ASCII 0 Keyboard 0 Movement Mouse Keybinds 0 Fullscreen 1 Font 18/SmallcapsGlow Map View 76x50 Tactical HUD 1 Map Filters NONE Filters NONE Steam 1 RUN: 2015a32c-6703-4ff6-a7de-e9db47948f47